[Event "NOR-ch Elite 2017"]
[Site "Stavanger"]
[Date "2017.07.03"]
[Round "4"]
[White "Risting, Eivind Olav"]
[Black "Holm, Kristian Stuvik"]
[Result "1/2-1/2"]
[ECO "D70"]
[WhiteElo "2307"]
[BlackElo "2403"]
[Annotator "ChessBase"]
[PlyCount "28"]
[EventDate "2017.??.??"]
[EventType "swiss"]
[EventCountry "NOR"]
[SourceTitle "playchess.com"]
[Source "ChessBase"]
[SourceQuality "1"]
[TimeControl "40/5400+30:1800+30"]

1. d4 {[%emt 0:00:00]} Nf6 {[%emt 0:01:13]} 2. c4 {[%emt 0:00:12]} g6 {[%emt 0:00:13]} 3. Nf3 {[%emt 0:00:48]} Bg7 {[%emt 0:00:07]} 4. g3 {[%emt 0:00:12]} b6 {[%emt 0:03:36]} 5. Bg2 {[%emt 0:00:40]} Bb7 {[%emt 0:00:05]} 6. O-O {[%emt 0:00:15]} O-O {[%emt 0:00:06]} 7. Nc3 {[%emt 0:02:19]} Ne4 {[%emt 0:00:22]} 8. Bd2 {[%emt 0:02:58]} Nxc3 {[%emt 0:11:56]} 9. Bxc3 {[%emt 0:00:49]} Be4 {[%emt 0:00:04]} 10. Qd2 {[%emt 0:08:05]} c6 {[%emt 0:06:25]} 11. Rac1 {[%emt 0:11:28]} d5 {[%emt 0:13:44]} 12. b3 {[%emt 0:02:41]} a5 {[%emt 0:03:20]} 13. Rfd1 {[%emt 0:03:11]} Nd7 {[%emt 0:04:04]} 14. Qf4 {[%emt 0:20:35]} e6 {[%emt 0:14:11]} 1/2-1/2

[Event "NOR-ch Elite 2017"]
[Site "Stavanger"]
[Date "2017.07.03"]
[Round "4"]
[White "Aulin-Jansson, Joran"]
[Black "Machlik, Endre"]
[Result "1-0"]
[ECO "B10"]
[WhiteElo "2267"]
[BlackElo "2157"]
[Annotator "NA"]
[PlyCount "59"]
[EventDate "2017.??.??"]
[EventType "swiss"]
[EventCountry "NOR"]
[SourceTitle "playchess.com"]
[Source "ChessBase"]
[SourceQuality "1"]
[TimeControl "40/5400+30:1800+30"]

{[%evp 8,59,-27,-36,14,-7,18,-20,15,-33,-42,-29,-45,-27,-40,-41,0,-54,20,-10,-25,-32,118,137,129,92,237,194,378,428,474,392,404,439,447,429,466,32767,670,930,768,620,681,770,825,823,749,717,666,444,868,32767,32767,809]} 1. e4 {[%emt 0:00:00]} c6 {[%emt 0:00:04]} 2. Nc3 {[%emt 0:00:00]} d5 {[%emt 0:00:06]} 3. d3 {[%emt 0:00:04]} e5 {[%emt 0:00:17]} 4. g3 {[%emt 0:01:16] B11: Caro-Kann: Two Knights Variation} Nf6 {[%emt 0:01:38]} 5. Bg2 {[%emt 0:00:07] LiveBook: 14 Games} Be6 {[%emt 0:00:24]} (5... dxe4 6. dxe4 Qxd1+ 7. Nxd1 Be6 8. f3 Na6 9. a3 Nd7 10. Be3 Bc5 11. Ne2 Ke7 12. Kf2 {½-½ (33) Lu,S (2620)-Wang,Y (2706) China 2017}) 6. Nf3 {[%emt 0:07:51]} Bd6 {[%emt 0:01:24]} 7. O-O {[%emt 0:00:09]} (7. d4 $5 {[%cal Rd4e5]}) 7... O-O {[%emt 0:00:48]} (7... d4 $5 {[%cal Rd4c3]} 8. Ne2 c5 $15) 8. Ng5 $146 {[%emt 0:05:03]} (8. d4 $5 {[%cal Rd4e5]}) ({Predecessor:} 8. Bg5 Nbd7 9. d4 Rc8 10. dxe5 Nxe5 11. exd5 cxd5 12. Bxf6 Qxf6 13. Nxd5 Bxd5 14. Qxd5 Rxc2 15. Qxb7 Rxb2 {0-1 (21) Safi,M-Joshi,G (1972) ICCF email 2012}) 8... Bg4 {[%emt 0:03:38]} 9. f3 {[%emt 0:03:29]} Bc8 {[%emt 0:02:29]} 10. f4 {[%emt 0:02:55]} h6 {[%emt 0:19:24]} 11. Nh3 {[%emt 0:04:25]} Qb6+ {[%emt 0:12:54]} 12. Kh1 {[%emt 0:01:23]} Rd8 {[%emt 0:00:42]} ({Black should play} 12... d4 $15 13. Ne2 Bg4) 13. f5 {[%emt 0:02:11]} Bb4 (13... d4 $5 {[%cal Rd4c3]} 14. Nb1 Qc7 $15) 14. Nf2 {[%emt 0:04:24]} Na6 {[%emt 0:15:43]} (14... d4 $15 {keeps the upper hand.} 15. Ne2 Be7) 15. Ng4 {[%emt 0:03:26]} Nxg4 {[%emt 0:09:53]} 16. Qxg4 {[%emt 0:00:13]} Kf8 {[%emt 0:00:16]} (16... Rd6 $16 {was called for.}) 17. Qh4 {[%emt 0:01:43]} Be7 $2 {[%emt 0:01:20] [#]} (17... d4) 18. f6 $1 {[%emt 0:04:33]} Bxf6 {[%emt 0:00:53]} 19. Rxf6 {[%emt 0:00:08]} gxf6 {[%emt 0:00:08]} 20. Qxf6 {[%emt 0:00:25]} Be6 {[%emt 0:02:15]} 21. Bxh6+ {[%emt 0:01:30]} Ke8 {[%emt 0:00:07]} 22. Bg5 {[%emt 0:01:36]} Qc7 $2 {[%emt 0:03:05]} (22... Qc5 23. Rf1 Nc7 24. exd5 cxd5 25. Qxe5 b6) 23. exd5 {[%emt 0:00:30]} cxd5 {[%emt 0:02:23]} 24. Nb5 {[%emt 0:03:51]} Qc5 {[%emt 0:00:59]} 25. d4 {[%emt 0:00:10]} exd4 {[%emt 0:00:43]} 26. Nxd4 {[%emt 0:00:08]} Nc7 {[%emt 0:01:26]} 27. Re1 {[%emt 0:00:45]} Kd7 {[%emt 0:00:49]} 28. c4 {[%emt 0:32:43]} Rf8 $18 {[%emt 0:17:03]} 29. cxd5 {[%emt 0:02:03]} Nxd5 {[%emt 0:01:01]} 30. Nxe6 {[%emt 0:00:34]} 1-0

[Event "NOR-ch Elite 2017"]
[Site "Stavanger"]
[Date "2017.07.06"]
[Round "7"]
[White "Tryggestad, Andreas Garberg"]
[Black "Haldorsen, Benjamin"]
[Result "1/2-1/2"]
[ECO "D26"]
[WhiteElo "2324"]
[BlackElo "2370"]
[Annotator "NA"]
[PlyCount "201"]
[EventDate "2017.??.??"]
[EventType "swiss"]
[EventCountry "NOR"]
[SourceTitle "playchess.com"]
[Source "ChessBase"]
[SourceQuality "1"]
[TimeControl "40/5400+30:1800+30"]

1. d4 {[%emt 0:00:00]} d5 {[%emt 0:01:53]} 2. c4 {[%emt 0:00:00]} dxc4 {[%emt 0:01:06]} 3. Nf3 {[%emt 0:00:00]} Nf6 {[%emt 0:00:28]} 4. e3 {[%emt 0:00:00]} e6 {[%emt 0:00:08]} 5. Bxc4 {[%emt 0:00:00]} a6 {[%emt 0:00:02]} 6. a4 {[%emt 0:00:08]} c5 {[%emt 0:00:06]} 7. O-O {[%emt 0:00:07]} Nc6 {[%emt 0:00:23]} 8. Nc3 {[%emt 0:00:08]} Be7 {[%emt 0:00:05]} 9. Qe2 {[%emt 0:00:18]} O-O {[%emt 0:00:05]} 10. Rd1 {[%emt 0:00:10]} Qc7 {[%emt 0:00:01]} 11. dxc5 {[%emt 0:05:04]} Bxc5 {[%emt 0:01:09]} 12. Bd2 {[%emt 0:00:18] D27: Queen's Gambit Accepted: Classical main line: 7 e4!? and 7 a4} b6 {[%emt 0:01:41]} 13. Rac1 {[%emt 0:00:47]} (13. Bd3 Bb7 14. Ne4 Nxe4 15. Bxe4 f5 16. Bc2 Rae8 17. Bc3 h6 18. Bd3 a5 19. Bb5 Kh7 20. Rac1 Rd8 21. Qc4 Qe7 {1-0 (44) Lysyj,I (2595)-Timofeev,A (2664) Dagomys 2008}) 13... Bb7 {[%emt 0:00:15]} 14. Be1 {[%emt 0:01:02]} Ne5 {[%emt 0:12:04]} 15. Nxe5 {[%emt 0:02:39]} Qxe5 {[%emt 0:00:10]} 16. Nb1 $146 {[%emt 0:01:01]} ({Predecessor:} 16. h3 h5 17. Kh1 g5 18. Nb1 Qe4 19. Qf1 a5 {0-1 (32) Faizrakhmanov,R (2190)-Skomorokhin,R (2376) Kazan 2012}) 16... a5 {[%emt 0:09:14]} 17. Bc3 {[%emt 0:00:53]} Qg5 {[%emt 0:00:15]} 18. Qf1 {[%emt 0:00:45]} e5 {[%emt 0:03:22]} (18... Ng4 $17 19. Re1 Rac8) 19. Nd2 {[%emt 0:00:27]} Ng4 {[%emt 0:03:03]} 20. Re1 $1 {[%emt 0:06:10]} Rad8 {[%emt 0:05:37]} 21. Nb3 {[%emt 0:02:19]} (21. h3 $11 Nf6 22. Ba6) 21... Bd6 {[%emt 0:02:17]} ({Black should play} 21... Qh4 $17 {[%csl Gg4][%cal Rh4h2]} 22. h3 {[#]} Nxf2 $1 {[%mdl 512]} 23. Qxf2 Qxc4 24. Nxc5 Qxc5) 22. h3 {[%emt 0:07:03]} Nf6 {[%emt 0:00:32]} 23. Red1 {[%emt 0:00:50]} Ne4 {[%emt 0:00:55]} 24. Bd5 {[%emt 0:01:58]} Nxc3 {[%emt 0:00:20]} 25. Rxc3 {[%emt 0:00:19]} Bc8 {[%emt 0:03:38]} 26. e4 {[%emt 0:00:24]} Bb4 {[%emt 0:05:49]} 27. Rg3 {[%emt 0:00:36]} Qh5 {[%emt 0:00:31]} 28. Rf3 {[%emt 0:00:31]} Rd6 {[%emt 0:03:33]} 29. Nd2 {[%emt 0:01:42]} Rg6 {[%emt 0:01:41]} 30. Kh2 $2 {[%emt 0:00:50]} (30. Qc4 $11 Rf6 31. Qb3) 30... Bg4 $1 {[%emt 0:00:59]} 31. Qc4 {[%emt 0:01:09]} Bxf3 {[%emt 0:02:12]} 32. Nxf3 {[%emt 0:00:17]} Rd6 {[%emt 0:03:16]} 33. Qc7 {[%emt 0:02:02]} ({Better is} 33. Qc1) 33... Bc5 {[%emt 0:00:47]} 34. Rd2 {[%emt 0:11:50] [#]} Qh6 $1 {[%emt 0:00:19]} 35. Kg1 {[%emt 0:06:53]} Qf6 {[%emt 0:00:22]} 36. Rc2 {[%emt 0:07:13]} g6 {[%emt 0:02:22]} 37. Rxc5 {[%emt 0:09:01]} bxc5 {[%emt 0:00:33]} 38. Qxc5 {[%emt 0:00:06] [#]} Rxd5 $1 {[%emt 0:08:30]} 39. Qxd5 {[%emt 0:00:27]} Rd8 {[%emt 0:02:30]} 40. Qxe5 {[%emt 0:05:55]} Qxe5 {[%emt 0:32:22]} 41. Nxe5 {[%emt 0:30:02]} Rd1+ {[%emt 0:00:49]} 42. Kh2 {[%emt 0:00:01]} Rd4 {[%emt 0:00:09]} 43. b3 {[%emt 0:00:04]} Rb4 {[%emt 0:00:05]} 44. Nc4 {[%emt 0:00:12]} Rxb3 {[%emt 0:00:04]} 45. Nxa5 {[%emt 0:00:23]} Rb4 {[%emt 0:00:26]} 46. f3 {[%emt 0:00:06]} f6 {[%emt 0:00:31]} 47. Nc6 {[%emt 0:00:10]} Rxa4 {[%emt 0:00:09]} 48. Ne7+ {[%emt 0:00:05]} Kf7 {[%emt 0:01:39]} 49. Nd5 {[%emt 0:00:06]} Ke6 {[%emt 0:01:40]} 50. Kg3 {[%emt 0:04:51]} Ke5 {[%emt 0:00:37]} 51. Nc3 {[%emt 0:11:32]} Ra3 {[%emt 0:02:54]} 52. Ne2 {[%emt 0:00:38]} g5 {[%emt 0:02:06]} 53. Kf2 {[%emt 0:03:09]} Kd6 {[%emt 0:02:39]} 54. Kg3 {[%emt 0:02:40]} Kc5 {[%emt 0:01:38]} 55. h4 {[%emt 0:00:58]} Ra2 {[%emt 0:01:11]} 56. Nc3 {[%emt 0:00:26]} gxh4+ {[%emt 0:00:22]} 57. Kh3 {[%emt 0:00:20]} Ra1 {[%emt 0:03:48]} 58. Kxh4 {[%emt 0:01:10]} Kd4 {[%emt 0:00:13]} 59. Nd5 {[%emt 0:04:58] [#]} f5 $1 {[%emt 0:00:56]} 60. Nf6 {[%emt 0:02:23]} Ke5 {[%emt 0:01:22]} 61. Nd7+ {[%emt 0:04:12]} Kd6 {[%emt 0:02:38]} 62. Nf6 {[%emt 0:00:00]} Ke5 {[%emt 0:00:00]} (62... Ke6 $5 {[%cal Re6f6]} 63. Kg5 fxe4 64. Nxe4 Kf7 $15) 63. Nd7+ {[%emt 0:00:00]} Ke6 {[%emt 0:00:00]} 64. Nc5+ {[%emt 0:00:00]} Kd6 {[%emt 0:00:00]} 65. Nb3 $2 {[%emt 0:00:00] [#]} (65. Nd3 $11) 65... Ra2 $1 {[%emt 0:00:00]} 66. g3 {[%emt 0:00:00]} fxe4 {[%emt 0:00:00]} 67. fxe4 {[%emt 0:00:00]} Ke5 {[%emt 0:00:00]} 68. Nc5 {[%emt 0:00:00]} Rc2 {[%emt 0:00:00]} 69. Nd7+ $19 {[%emt 0:00:00]} Kxe4 {[%emt 0:00:00]} 70. Kg5 {[%emt 0:00:00]} Rc7 {[%emt 0:00:00]} 71. Nf6+ {[%emt 0:00:00]} Ke5 {[%emt 0:00:00]} 72. Nh5 {[%emt 0:00:00]} Rc6 {[%emt 0:00:00]} 73. Nf4 {[%emt 0:00:00]} h6+ {[%emt 0:00:00]} 74. Kg4 {[%emt 0:00:00]} Ke4 {[%emt 0:00:00]} 75. Kh5 {[%emt 0:00:00]} Kf3 {[%emt 0:00:00]} 76. Ng6 {[%emt 0:00:00]} Kxg3 {[%emt 0:00:00]} 77. Kxh6 {[%emt 0:00:00]} Kg4 {[%emt 0:00:00]} 78. Kg7 {[%emt 0:00:00]} Kg5 {[%emt 0:00:00]} 79. Ne7 {[%emt 0:00:00]} Ra6 {[%emt 0:00:00]} 80. Kf7 {[%emt 0:00:00]} Rf6+ {[%emt 0:00:47]} 81. Ke8 {[%emt 0:00:00]} Rf1 {[%emt 0:00:36]} 82. Kd7 {[%emt 0:00:00]} Kf6 {[%emt 0:00:15]} 83. Nd5+ {[%emt 0:00:00]} Ke5 {[%emt 0:00:17]} 84. Nc7 {[%emt 0:00:00]} Rd1+ {[%emt 0:02:28]} 85. Ke7 {[%emt 0:00:00]} Rh1 {[%emt 0:04:25]} 86. Kd7 {[%emt 0:00:00]} Rh6 {[%emt 0:00:07]} 87. Nb5 {[%emt 0:00:00]} Rb6 {[%emt 0:02:01]} 88. Nc7 {[%emt 0:00:00]} Rd6+ {[%emt 0:00:45]} 89. Ke7 {[%emt 0:00:00]} Rh6 {[%emt 0:00:17]} 90. Kd7 {[%emt 0:00:00]} Kd4 {[%emt 0:00:01]} 91. Ne6+ {[%emt 0:00:00]} Kd5 {[%emt 0:00:08]} 92. Nc7+ {[%emt 0:00:00]} Kc5 {[%emt 0:00:49]} 93. Ne6+ {[%emt 0:00:00]} Kb6 {[%emt 0:00:11]} 94. Kd6 {[%emt 0:00:00]} Rh1 {[%emt 0:00:14]} 95. Nd4 {[%emt 0:00:00]} Rd1 {[%emt 0:00:10]} 96. Kd5 {[%emt 0:00:00]} Kc7 {[%emt 0:00:06]} 97. Kc5 {[%emt 0:00:00]} Rh1 {[%emt 0:00:05]} 98. Kd5 {[%emt 0:00:00]} Rh5+ {[%emt 0:00:05]} 99. Ke4 {[%emt 0:00:00]} Rh4+ {[%emt 0:00:52]} 100. Kd5 {[%emt 0:00:00]} Rxd4+ {[%emt 0:02:31]} 101. Kxd4 1/2-1/2

[Event "NOR-ch Elite 2017"]
[Site "Stavanger"]
[Date "2017.07.06"]
[Round "7"]
[White "Machlik, Endre"]
[Black "Moen, Andreas"]
[Result "1/2-1/2"]
[ECO "D20"]
[WhiteElo "2157"]
[BlackElo "2329"]
[Annotator "NA"]
[PlyCount "122"]
[EventDate "2017.??.??"]
[EventType "swiss"]
[EventCountry "NOR"]
[SourceTitle "playchess.com"]
[Source "ChessBase"]
[SourceQuality "1"]
[TimeControl "40/5400+30:1800+30"]

1. d4 {[%emt 0:00:00]} d5 {[%emt 0:00:55]} 2. c4 {[%emt 0:00:00]} dxc4 {[%emt 0:00:17]} 3. e4 {[%emt 0:00:13]} Nc6 {[%emt 0:04:24]} 4. d5 {[%emt 0:00:44]} Ne5 {[%emt 0:00:07]} 5. Bf4 {[%emt 0:00:47]} Ng6 {[%emt 0:00:44]} 6. Bg3 {[%emt 0:00:50] D20: Queen's Gambit Accepted: 3 e3 and 3 e4} (6. Be3 Nf6 7. Nc3 e5 8. f3 Bd6 9. Bxc4 O-O 10. Nge2 a6 11. a4 Nh5 12. O-O Nhf4 13. g3 Nxe2+ 14. Qxe2 {1-0 (41) Sanikidze,T (2520)-Malakhatko,V (2497) Ordu 2017}) 6... e5 {[%emt 0:01:03]} 7. Nc3 {[%emt 0:01:14]} a6 {[%emt 0:04:45]} 8. Bxc4 {[%emt 0:05:06]} Bd6 {[%emt 0:00:34] LiveBook: 7 Games} 9. Nf3 {[%emt 0:00:26]} h5 {[%emt 0:11:29]} 10. h3 {[%emt 0:00:55]} h4 {[%emt 0:00:34]} 11. Bh2 {[%emt 0:00:06]} Nf6 {[%emt 0:00:16]} 12. O-O {[%emt 0:09:05]} Nh5 {[%emt 0:07:18]} 13. Ne2 {[%emt 0:09:34]} Qf6 {[%emt 0:14:00]} 14. Qd3 $146 {[%emt 0:06:03]} Nhf4 {[%emt 0:09:00]} 15. Bxf4 {[%emt 0:11:25]} Nxf4 {[%emt 0:00:33]} 16. Nxf4 {[%emt 0:00:28]} Qxf4 {[%emt 0:00:05]} 17. Qd2 {[%emt 0:15:11]} Qxd2 {[%emt 0:12:25]} (17... g5 $5) 18. Nxd2 {[%emt 0:00:04]} Bd7 {[%emt 0:01:39]} 19. Be2 {[%emt 0:01:15]} g6 {[%emt 0:19:23]} 20. Nc4 {[%emt 0:01:59]} Ke7 {[%emt 0:01:27]} 21. Nxd6 {[%emt 0:03:09]} cxd6 {[%emt 0:02:52]} 22. Rac1 {[%emt 0:01:02]} Rac8 {[%emt 0:00:05]} 23. f3 {[%emt 0:01:05]} f5 {[%emt 0:02:41]} 24. Bd3 {[%emt 0:01:48]} fxe4 {[%emt 0:01:54]} 25. Bxe4 {[%emt 0:10:08]} g5 {[%emt 0:00:08]} 26. Kf2 {[%emt 0:00:12]} a5 {[%emt 0:00:29]} 27. b3 {[%emt 0:04:09]} b5 {[%emt 0:01:11]} 28. a3 {[%emt 0:01:33]} Rc5 {[%emt 0:01:50]} 29. b4 {[%emt 0:06:44]} axb4 {[%emt 0:00:13]} 30. axb4 {[%emt 0:00:06]} Rxc1 {[%emt 0:00:03]} 31. Rxc1 {[%emt 0:00:04]} Ra8 {[%emt 0:00:04]} 32. Rc2 {[%emt 0:05:20]} Ra3 {[%emt 0:01:33]} 33. Rb2 {[%emt 0:01:57]} Kd8 {[%emt 0:00:42]} 34. Ke2 {[%emt 0:00:56]} Rc3 {[%emt 0:01:06]} 35. Bd3 {[%emt 0:00:19]} Ra3 {[%emt 0:00:38]} 36. Kd2 {[%emt 0:00:36]} Kc7 {[%emt 0:00:47]} 37. Kc2 {[%emt 0:00:59]} Kb6 {[%emt 0:00:47]} 38. Rb3 {[%emt 0:00:22]} Ra2+ {[%emt 0:00:14]} 39. Rb2 {[%emt 0:00:04]} Ra8 {[%emt 0:00:22]} 40. Kb3 {[%emt 0:00:36]} Bc8 {[%emt 0:31:00]} 41. Be4 {[%emt 0:03:49]} Bb7 {[%emt 0:00:00]} 42. Ra2 {[%emt 0:00:26]} Rc8 {[%emt 0:00:00]} 43. Rc2 {[%emt 0:00:06]} Rc4 {[%emt 0:00:00]} 44. Rxc4 {[%emt 0:05:22]} bxc4+ {[%emt 0:00:00]} 45. Kxc4 {[%emt 0:00:22]} Ba6+ {[%emt 0:00:00]} 46. Kc3 {[%emt 0:00:25]} Bf1 {[%emt 0:00:00]} 47. f4 {[%emt 0:00:09]} gxf4 {[%emt 0:00:00]} 48. Bf3 {[%emt 0:02:05]} Kb5 {[%emt 0:00:00]} 49. Be4 {[%emt 0:00:19]} Be2 {[%emt 0:00:00]} 50. Kb3 {[%emt 0:01:56]} Bf1 $11 {[%emt 0:00:00]} 51. Kc3 {[%emt 0:00:26]} Ka4 {[%emt 0:00:00]} 52. Bc2+ {[%emt 0:00:44]} Ka3 {[%emt 0:00:00]} 53. Be4 {[%emt 0:00:07]} Be2 {[%emt 0:00:00]} 54. Bf3 {[%emt 0:01:36]} Bf1 {[%emt 0:01:24]} 55. Be4 {[%emt 0:00:13]} Ka4 {[%emt 0:00:15]} 56. Bf3 {[%emt 0:01:09]} Kb5 {[%emt 0:00:36]} 57. Be4 {[%emt 0:00:05]} Be2 {[%emt 0:00:10]} 58. Kb3 {[%emt 0:00:06]} Bd1+ {[%emt 0:00:51]} 59. Kc3 {[%emt 0:00:18]} Ka4 {[%emt 0:01:19]} 60. Kc4 {[%emt 0:00:47]} Be2+ {[%emt 0:01:32]} 61. Kc3 {[%emt 0:00:09]} Kb5 1/2-1/2